bitfinex/quotes_ETHUSD_20241013
["timestamp","ask_amount","ask_price","bid_price","bid_amount"]
[1728810353850,3.13454204,2469.4,2469.3,6.91513736]
[1728810354070,3.13454204,2469.4,2469.3,6.78832712]
[1728810354600,3.13454204,2469.4,2469.3,7.09248002]
[1728810355347,3.13438235,2469.4,2469.3,6.78832712]
[1728810355773,3.13438235,2469.4,2469.3,7.09247899]
[1728810357045,3.13438235,2469.4,2469.3,7.21929137]
[1728810357617,2.70977413,2469.4,2469.3,8.04069137]
[1728810357882,0.10783254,2469.4,2469.3,8.04069137]
[1728810358080,0.10783254,2469.4,2469.3,11.04069137]
[1728810358280,0.84832241,2469.5,2469.3,11.16745543]
[1728810358465,0.84832241,2469.5,2469.4,3.13215052]
[1728810358670,2.60145363,2469.5,2469.4,3.13215052]
[1728810358988,2.60145363,2469.5,2469.4,7.48582988]
[1728810359580,2.60133951,2469.5,2469.4,7.48582988]
[1728810359969,0.84832241,2469.5,2469.4,7.48582988]
[1728810360179,2.60127496,2469.5,2469.4,7.48582988]
[1728810362702,2.60127496,2469.5,2469.4,0.43091633]
[1728810362874,2.60127496,2469.5,2469.4,1.91454734]
[1728810363069,2.60127496,2469.5,2469.4,1.9144312]
[1728810363269,0.84832241,2469.5,2469.4,1.9144312]
[1728810363602,2.60105362,2469.5,2469.4,1.61042798]
[1728810363901,2.60105362,2469.5,2469.4,1.48363101]
[1728810364200,2.60105362,2469.5,2469.4,1.61043869]
[1728810365977,2.60105362,2469.5,2469.4,5.65999869]
[1728810366179,2.70652974,2469.5,2469.4,5.65999869]
[1728810368105,2.70652974,2469.5,2469.4,6.97471219]
[1728810370288,2.70652974,2469.5,2469.4,7.27865889]
[1728810370699,0.8065686,2469.5,2469.4,9.84790451]
[1728810370942,0.80657043,2469.5,2469.4,9.97470279]
[1728810371090,0.10547612,2469.5,2469.4,10.27863738]
[1728810372419,0.8064894,2469.5,2469.4,10.27863738]
[1728810372740,0.80653456,2469.5,2469.4,10.27863738]
[1728810373517,0.10547612,2469.5,2469.4,10.27863738]
[1728810378241,0.10547612,2469.5,2469.4,9.97470189]
[1728810378539,0.10547612,2469.5,2469.4,10.27852568]
[1728810381799,0.10547612,2469.5,2469.4,9.84790451]
[1728810381994,0.10547612,2469.5,2469.4,9.97470195]
[1728810382208,0.10547612,2469.5,2469.4,10.2785406]
[1728810385539,0.10547612,2469.5,2469.4,9.84790451]
[1728810385729,0.10547612,2469.5,2469.4,9.97470218]
[1728810386240,0.10547612,2469.5,2469.4,10.58247018]
[1728810386796,0.80649906,2469.5,2469.4,10.58247018]
[1728810388339,0.80649906,2469.5,2469.4,10.27858618]
[1728810391507,0.80651518,2469.5,2469.4,10.27858618]
[1728810392424,2.7064217,2469.5,2469.4,8.96387268]
[1728810392907,1.85809929,2469.5,2469.4,8.96401011]
[1728810393110,2.7064217,2469.5,2469.4,8.96401011]
[1728810393443,2.7064217,2469.5,2469.4,8.83721244]
[1728810393644,2.7064217,2469.5,2469.4,8.9640129]
[1728810395840,2.7064217,2469.5,2469.4,8.83721244]
[1728810396223,2.70648208,2469.5,2469.4,8.83721244]
[1728810396813,0.80654954,2469.5,2469.4,8.83721244]
[1728810397347,2.70644444,2469.5,2469.4,8.83721244]
[1728810397643,2.70644444,2469.5,2469.4,8.53319101]
[1728810397817,2.70644444,2469.5,2469.4,8.83731195]
[1728810400929,2.70616053,2469.5,2469.4,8.83731195]
[1728810402167,2.70616053,2469.5,2469.4,8.8373504]
[1728810405458,2.70616053,2469.5,2469.4,10.20237744]
[1728810405660,2.70624011,2469.5,2469.4,10.20237744]
[1728810405866,2.70624011,2469.5,2469.4,9.89821805]
[1728810411243,2.70624011,2469.5,2469.4,8.53319101]
[1728810412745,2.70630076,2469.5,2469.4,8.53319101]
[1728810414098,1.85797835,2469.5,2469.4,8.53319101]
[1728810415257,1.85795079,2469.5,2469.4,8.53319101]
[1728810417197,2.70572047,2469.5,2469.4,8.53319101]
[1728810417397,1.85795079,2469.5,2469.4,8.53319101]
[1728810419876,1.8573667,2469.5,2469.4,8.53319101]
[1728810421704,1.8573667,2469.5,2469.4,9.86780211]
[1728810422011,2.70487248,2469.5,2469.4,9.86780211]
[1728810422320,1.8573667,2469.5,2469.4,9.86780211]
[1728810422670,2.70488312,2469.5,2469.4,9.86780211]
[1728810422871,2.70490264,2469.5,2469.4,9.86780211]
[1728810423209,0.95301206,2469.5,2469.4,9.86780211]
[1728810423369,1.85762813,2469.5,2469.4,9.86780211]
[1728810425249,2.70512034,2469.5,2469.4,9.86780211]
[1728810425711,1.85762813,2469.5,2469.4,9.86780211]
[1728810427894,0.8064826,2469.5,2469.4,9.86780211]
[1728810428192,1.85799233,2469.5,2469.4,9.86780211]
[1728810428571,1.85799233,2469.5,2469.4,8.53319101]
[1728810429832,3.13092296,2469.5,2469.4,4.48363101]
[1728810430878,3.13092296,2469.5,2469.4,4.91460403]
[1728810433838,3.13092296,2469.5,2469.4,8.96416403]
[1728810434317,3.13092296,2469.5,2469.4,8.53319101]
[1728810434520,3.13092296,2469.5,2469.4,8.96425591]
[1728810434824,3.13092296,2469.5,2469.4,10.3492725]
[1728810437324,2.07980011,2469.5,2469.4,10.3492725]
[1728810437630,3.13189016,2469.5,2469.4,10.3492725]
[1728810439489,1.85895953,2469.5,2469.4,10.3492725]
[1728810440194,0.10547612,2469.5,2469.4,10.3492725]
[1728810441715,0.10547612,2469.5,2469.4,10.22247172]
[1728810441926,0.8107,2469.7,2469.4,10.34925988]
[1728810442123,0.8107,2469.7,2469.6,1.49003101]
[1728810442296,0.8107,2469.7,2469.6,1.61682794]
[1728810442499,0.8107,2469.7,2469.6,1.92108329]
[1728810444037,0.8107,2469.7,2469.6,0.43744958]
[1728810445434,0.8107,2469.7,2469.6,0.0064]
[1728810445641,0.8107,2469.7,2469.6,0.13319784]
[1728810445936,0.8107,2469.7,2469.6,0.43744693]
[1728810446741,4.25896429,2469.7,2469.6,0.43744693]
[1728810447035,5.66105531,2469.7,2469.6,0.43744693]
[1728810447534,5.66111849,2469.7,2469.6,1.92107794]
[1728810448143,5.66111849,2469.7,2469.6,0.43744693]
[1728810449546,4.96004771,2469.7,2469.6,0.13319784]
[1728810449700,4.96004771,2469.7,2469.6,0.43743561]
[1728810451141,4.96004771,2469.7,2469.6,0.13319784]
[1728810451513,4.96004771,2469.7,2469.6,0.43743623]
[1728810451710,4.96004771,2469.7,2469.6,0.13319784]
[1728810452111,4.96004771,2469.7,2469.6,0.43743283]
[1728810452327,4.96006829,2469.7,2469.6,0.43743283]
[1728810453048,4.96006829,2469.7,2469.6,0.13319783]
[1728810455350,4.96006829,2469.7,2469.6,4.18242783]
[1728810455552,4.14936829,2469.7,2469.6,4.18242783]
[1728810455838,4.14936829,2469.7,2469.6,0.13319783]
[1728810456014,4.14936829,2469.7,2469.6,0.43743477]
[1728810456416,4.23691861,2469.7,2469.6,0.13319783]
[1728810457138,4.23674515,2469.7,2469.6,0.13319783]
[1728810460430,4.23674515,2469.7,2469.6,0.13319976]
[1728810461732,3.18529186,2469.7,2469.6,0.13319976]
[1728810462035,4.236748,2469.7,2469.6,0.13319976]
[1728810466680,4.23675978,2469.7,2469.6,0.13319976]
[1728810469884,4.23675978,2469.7,2469.6,0.0064]
[1728810470182,4.23675978,2469.7,2469.6,0.13319994]
[1728810471380,4.23681575,2469.7,2469.6,0.13319994]
[1728810478272,4.23681575,2469.7,2469.6,0.0064]
[1728810478477,4.23681575,2469.7,2469.6,0.13319938]
[1728810478988,4.23681575,2469.7,2469.6,0.0064]
[1728810479192,4.23681575,2469.7,2469.6,0.13319936]
[1728810479392,4.23681575,2469.7,2469.6,0.4374635]
[1728810480551,3.18529186,2469.7,2469.6,0.4374635]
[1728810480893,2.83527058,2469.7,2469.6,0.4374635]
[1728810481068,4.2373616,2469.7,2469.6,0.4374635]
[1728810481591,4.2373616,2469.7,2469.6,0.43746361]
[1728810484400,4.23758016,2469.7,2469.6,0.43746361]
[1728810488805,4.23758016,2469.7,2469.6,11.96430052]
[1728810488806,1.98834115,2469.7,2469.6,11.96430052]
[1728810488969,0.93605285,2469.7,2469.6,11.78681281]
[1728810489173,0.08755032,2469.7,2469.6,12.09104148]
[1728810489393,0.08755032,2469.7,2469.6,12.9429641]
[1728810489576,48.0,2470.0,2469.9,4.04874]
[1728810489773,48.0,2470.0,2469.9,8.5959261]
[1728810489774,49.05175192,2470.0,2469.9,8.5959261]
[1728810490066,49.05175192,2470.0,2469.9,10.07955711]
[1728810490313,49.89973193,2470.0,2469.9,10.07955711]
[1728810491614,49.89973193,2470.0,2469.9,5.72658844]
[1728810491813,49.89973193,2470.0,2469.9,1.61680744]
[1728810491987,49.05175192,2470.0,2469.9,1.61680744]
[1728810492575,49.89918571,2470.0,2469.9,1.61680744]
[1728810493026,49.89918571,2470.0,2469.9,1.6168083]
[1728810496955,49.89918571,2470.0,2469.9,1.61680872]
[1728810498253,49.89822519,2470.0,2469.9,1.61680872]
[1728810498408,49.89822519,2470.0,2469.9,1.49003101]
[1728810501378,49.97764124,2470.0,2469.9,1.49003101]
[1728810502490,48.07941605,2470.0,2469.9,1.49003101]
[1728810502991,49.12988163,2470.0,2469.9,1.49003101]
[1728810503367,49.97731542,2470.0,2469.9,1.49003101]
[1728810504095,48.07941605,2470.0,2469.9,1.49003101]
[1728810515011,48.07941605,2470.0,2469.9,8.53877101]
[1728810519594,49.13021196,2470.0,2469.9,10.69030511]
[1728810519799,48.07941605,2470.0,2469.9,10.81707894]
[1728810523348,48.07941605,2470.0,2469.9,10.69030511]
[1728810523553,48.07941605,2470.0,2469.9,10.81707978]
[1728810524974,48.07941605,2470.0,2469.9,3.13317416]
[1728810525138,49.97815028,2470.0,2469.9,4.61680517]
[1728810526433,49.97815028,2470.0,2469.9,8.66554517]
[1728810526772,49.97815028,2470.0,2469.9,4.61680517]
[1728810527283,49.97815028,2470.0,2469.9,4.61680869]
[1728810528437,49.97815028,2470.0,2469.9,8.66554869]
[1728810528677,49.97815028,2470.0,2469.9,10.82975356]
[1728810531280,49.9782935,2470.0,2469.9,10.82975356]
[1728810532337,49.9782935,2470.0,2469.9,11.13369641]
[1728810532541,49.9782935,2470.0,2469.9,10.82975356]
[1728810533584,49.13085971,2470.0,2469.9,11.1337713]
[1728810534562,50.40351796,2470.0,2469.9,11.1337713]
[1728810536082,50.40453953,2470.0,2469.9,11.1337713]
[1728810536443,50.40453953,2470.0,2469.9,9.78116643]
[1728810538719,50.40453953,2470.0,2469.9,9.65438875]
[1728810538992,50.40453953,2470.0,2469.9,9.35037101]
[1728810539167,50.40453953,2470.0,2469.9,9.65451332]
[1728810539554,50.40453953,2470.0,2469.9,9.35037101]
[1728810539895,50.40453953,2470.0,2469.9,9.47714585]
[1728810540112,50.40453953,2470.0,2469.9,9.78128718]
[1728810540266,50.40453953,2470.0,2469.9,9.35037101]
[1728810540773,50.40441731,2470.0,2469.9,9.35037101]
[1728810541297,50.40441731,2470.0,2469.9,9.65451121]
[1728810543318,50.40441731,2470.0,2469.9,9.65450916]
[1728810544212,50.40436942,2470.0,2469.9,9.65450916]
[1728810547316,50.40436942,2470.0,2469.9,9.35037101]
[1728810547499,50.40436942,2470.0,2469.9,9.65450866]
[1728810548886,50.40433454,2470.0,2469.9,9.65450866]
[1728810551220,50.40433454,2470.0,2469.9,9.35037101]
[1728810551508,50.40433454,2470.0,2469.9,8.53877101]
[1728810553610,49.3520743,2470.0,2469.9,8.53877101]
[1728810553816,50.4043355,2470.0,2469.9,8.53877101]
[1728810558335,50.40440534,2470.0,2469.9,8.53877101]
[1728810563102,50.40466074,2470.0,2469.9,8.53877101]
[1728810564659,50.40466074,2470.0,2469.9,9.34037101]
[1728810565755,49.3520743,2470.0,2469.9,9.34037101]
[1728810565965,50.4048739,2470.0,2469.9,10.09402917]
[1728810567983,50.40500517,2470.0,2469.9,10.09402917]
[1728810577170,50.40500517,2470.0,2469.9,9.29242917]
[1728810577372,50.40500517,2470.0,2469.9,4.49003101]
[1728810577373,50.40488163,2470.0,2469.9,4.49003101]
[1728810581374,50.40488163,2470.0,2469.9,8.53877101]
[1728810581958,50.40482731,2470.0,2469.9,8.53877101]
[1728810582269,50.40482731,2470.0,2469.9,3.0064]
[1728810582456,50.40482731,2470.0,2469.9,8.53877101]
[1728810585445,50.40529152,2470.0,2469.9,9.87598811]
[1728810589152,52.23169167,2470.0,2469.9,9.87598811]
[1728810589477,50.4054769,2470.0,2469.9,9.87598811]
[1728810591444,50.4055485,2470.0,2469.9,9.87598811]
[1728810596371,50.40547771,2470.0,2469.9,9.87598811]
[1728810600614,50.40549225,2470.0,2469.9,9.87598811]
[1728810602913,50.40549225,2470.0,2469.9,10.00276455]
[1728810604070,50.40549225,2470.0,2469.9,10.1295406]
[1728810604275,49.13218441,2470.0,2469.9,10.1295406]
[1728810604577,49.9810621,2470.0,2469.9,10.1295406]
[1728810605631,49.9810621,2470.0,2469.9,10.00276455]
[1728810605779,49.9810621,2470.0,2469.9,10.00276309]
[1728810608591,49.9810621,2470.0,2469.9,10.00276306]
[1728810609084,49.98121493,2470.0,2469.9,10.00276306]
[1728810611586,49.98121493,2470.0,2469.9,10.30688197]
[1728810612420,49.98121493,2470.0,2469.9,10.3068819]
[1728810613920,49.98118754,2470.0,2469.9,10.3068819]
[1728810615987,49.98118754,2470.0,2469.9,10.30687602]
[1728810616623,49.98118754,2470.0,2469.9,10.30687601]
[1728810616826,49.98118754,2470.0,2469.9,10.30047601]
[1728810617001,49.98118754,2470.0,2469.9,5.53237101]
[1728810617002,1.98118754,2470.0,2469.9,5.53237101]
[1728810617200,1.13230985,2470.0,2469.9,5.53237101]
[1728810617435,1.83425978,2470.0,2469.9,6.49049811]
[1728810617640,1.83425978,2470.0,2469.9,2.44175811]
[1728810617802,3.23814097,2470.0,2469.9,2.44175811]
[1728810618542,3.23816622,2470.0,2469.9,2.44175811]
[1728810619624,3.23816622,2470.0,2469.9,2.44961433]
[1728810623028,3.23816622,2470.0,2469.9,1.49148723]
[1728810623240,3.94010404,2470.0,2469.9,1.49148723]
[1728810623402,3.23815645,2470.0,2469.9,1.49148723]
[1728810625111,4.93380697,2470.0,2469.9,1.49148723]
[1728810625941,4.93383917,2470.0,2469.9,1.49148723]
[1728810628954,4.93383917,2470.0,2469.9,1.61826332]
[1728810631241,4.93383917,2470.0,2469.9,0.13463231]
[1728810631455,6.50557485,2470.0,2469.9,0.13463231]
[1728810631659,4.84532,2470.0,2469.9,0.13463231]
[1728810631868,4.84532,2470.0,2469.9,0.00785622]
[1728810632241,9.14700807,2470.0,2469.9,0.00785622]
[1728810632416,4.84532,2470.0,2469.9,0.00785622]
[1728810632941,4.84469447,2470.0,2469.9,0.00785622]
[1728810636056,8.89327447,2470.0,2469.9,0.00785622]
[1728810636249,4.84469447,2470.0,2469.9,0.00785622]
[1728810637625,4.84356102,2470.0,2469.9,0.00785622]
[1728810638449,6.96356701,2470.0,2469.9,0.00785622]
[1728810640574,6.17933133,2470.0,2469.9,0.00785622]
[1728810642328,6.17856475,2470.0,2469.9,0.00785622]
[1728810644261,4.05889491,2470.0,2469.9,0.00785622]
[1728810645946,4.05889491,2470.0,2469.9,1.49148723]
[1728810646269,4.96698794,2470.0,2469.9,1.49148723]
[1728810647044,4.96678941,2470.0,2469.9,1.49148723]
[1728810647847,3.27119638,2470.0,2469.9,1.49148723]
[1728810648577,3.13899185,2470.0,2469.9,1.49148723]
[1728810649651,3.13899185,2470.0,2469.9,2.12781595]
[1728810649853,3.13899185,2470.0,2469.9,2.91431595]
[1728810651575,3.13899185,2470.0,2469.9,2.27798723]
[1728810651786,3.13909725,2470.0,2469.9,2.40476635]
[1728810651981,3.13909725,2470.0,2469.9,2.40476644]
[1728810652195,3.13909725,2470.0,2469.9,2.27798723]
[1728810652376,3.13909725,2470.0,2469.9,2.40476631]
[1728810654888,3.13909725,2470.0,2469.9,1.61826631]
[1728810655677,3.13909725,2470.0,2469.9,1.49148723]
[1728810656092,3.13909725,2470.0,2469.9,0.00785622]
[1728810656559,1.86748465,2470.0,2469.9,0.00785622]
[1728810656765,4.091523,2470.0,2469.9,0.00785622]
[1728810657261,5.28702707,2470.0,2469.9,0.00785622]
[1728810657480,6.9826201,2470.0,2469.9,0.00785622]
[1728810657779,11.45524177,2470.0,2469.9,0.00785622]
[1728810657961,11.03136654,2470.0,2469.9,0.00785622]
[1728810658164,9.33560707,2470.0,2469.9,0.00785622]
[1728810658786,5.28702707,2470.0,2469.9,0.00785622]
[1728810659145,7.40666177,2470.0,2469.9,0.00785622]
[1728810660359,5.28702707,2470.0,2469.9,0.00785622]
[1728810660658,9.33563972,2470.0,2469.9,0.00785622]
[1728810661471,11.45531389,2470.0,2469.9,0.00785622]
[1728810662561,9.33563972,2470.0,2469.9,0.00785622]
[1728810663563,11.45531389,2470.0,2469.9,0.00785622]
[1728810664369,7.58293414,2470.0,2469.9,0.00785622]
[1728810664574,11.45548665,2470.0,2469.9,0.00785622]
[1728810671629,12.93911766,2470.0,2469.9,0.00785622]
[1728810671790,4.04902,2469.8,2469.6,0.00785622]
[1728810672117,4.04902,2469.8,2469.4,1.61042756]
[1728810672118,4.96571667,2469.7,2469.4,1.61042756]
[1728810672271,0.84807858,2469.5,2469.4,1.48363101]
[1728810672477,2.60086235,2469.5,2469.4,1.61828591]
[1728810672676,2.71536909,2469.5,2469.4,1.61828591]
[1728810672903,3.13940838,2469.5,2469.4,0.1346549]
[1728810675435,3.13940838,2469.5,2469.4,0.00785622]
[1728810675793,3.13940838,2469.5,2469.4,0.13466163]
[1728810678496,3.13941696,2469.5,2469.4,0.13466163]
[1728810682335,3.13941696,2469.5,2469.4,0.00785622]
[1728810682898,1.86729909,2469.5,2469.4,0.00785622]
[1728810683211,1.86784956,2469.5,2469.4,0.00785622]
[1728810683536,3.13996743,2469.5,2469.4,0.00785622]
[1728810683709,4.86189339,2469.5,2469.4,0.00785622]
[1728810684236,2.71599598,2469.5,2469.4,0.13466266]
[1728810684395,2.71599598,2469.5,2469.4,0.00785622]
[1728810684595,3.13996743,2469.5,2469.4,0.00785622]
[1728810684794,7.95086743,2469.5,2469.4,0.00785622]
[1728810684993,9.77743172,2469.5,2469.4,0.00785622]
[1728810685226,11.11558248,2469.5,2469.4,0.00785622]
[1728810686042,4.04962,2469.4,2469.2,0.00785622]
[1728810686238,2.6007884,2469.3,2469.0,1.48363101]
[1728810686399,0.70113978,2469.2,2469.1,0.12681944]
[1728810686596,0.11428217,2469.2,2469.1,0.13467566]
[1728810686829,0.84793894,2469.3,2469.1,0.00785622]
[1728810687013,0.11428217,2469.2,2469.1,0.12681839]
[1728810687233,0.11428217,2469.2,2469.1,0.12681831]
[1728810687413,0.84793894,2469.3,2469.1,0.12681831]
[1728810687739,0.11428217,2469.2,2469.0,1.48363101]
[1728810687911,0.84793894,2469.3,2469.1,0.12681966]
[1728810688237,0.11428217,2469.2,2469.0,1.48363101]
[1728810688412,0.96222111,2469.2,2468.9,2.73030629]
[1728810688615,0.7615,2469.2,2469.0,0.1268258]
[1728810688814,0.11422988,2469.1,2469.0,1.48363101]
[1728810689031,0.11422988,2469.1,2469.0,0.13468031]
[1728810689339,0.81506313,2469.1,2469.0,0.00785622]
[1728810689525,0.11422988,2469.1,2469.0,0.00785622]
[1728810690142,0.81495284,2469.1,2469.0,1.49148723]
[1728810690306,0.81495057,2469.1,2469.0,1.49148723]
[1728810690645,0.11422988,2469.1,2469.0,1.49148723]
[1728810690844,0.81483936,2469.1,2469.0,0.00785622]
[1728810691015,1.18445803,2469.1,2469.0,0.00785622]
[1728810691202,2.03239697,2469.1,2469.0,0.00785622]
[1728810691397,3.08328955,2469.1,2469.0,0.00785622]
[1728810691826,2.71367088,2469.1,2469.0,0.00785622]
[1728810692609,0.81455535,2469.1,2469.0,0.00785622]
[1728810697347,0.81429685,2469.1,2469.0,0.00785622]
[1728810700691,0.11422988,2469.1,2469.0,0.00785622]
[1728810701155,7.1875985,2469.1,2469.0,0.00785622]
[1728810701469,10.42111265,2469.1,2469.0,0.00785622]
[1728810701665,10.84508212,2469.1,2469.0,0.00785622]
[1728810701838,10.84498893,2469.1,2469.0,0.00785622]
[1728810702962,12.66878562,2469.1,2469.0,0.00785622]
[1728810703955,7.77893562,2469.1,2468.8,0.00785622]
[1728810704156,4.05087,2468.6,2468.5,0.00785622]
[1728810704362,7.18761037,2468.6,2468.0,2.24573101]
[1728810704577,6.48797496,2468.6,2468.0,2.24573101]
[1728810705273,6.48797496,2468.6,2468.0,5.24573101]
[1728810705562,6.48797496,2468.6,2468.0,3.7621]
[1728810705770,6.48797496,2468.6,2468.0,5.24573101]
[1728810705932,5.00434395,2468.6,2468.1,1.48363101]
[1728810706126,5.00434395,2468.6,2468.0,7.77206671]
[1728810706334,6.48797496,2468.6,2468.0,7.64523617]
[1728810706773,4.05104,2468.5,2468.0,8.0453823]
[1728810707000,0.11359188,2468.4,2468.0,8.0453823]
[1728810711867,0.11359188,2468.4,2468.1,1.48363101]
[1728810712168,0.11359188,2468.4,2468.3,0.00785622]
[1728810718096,5.60219817,2468.4,2468.3,0.00785622]
[1728810719222,7.08582918,2468.4,2468.3,0.00785622]
[1728810720592,4.05148,2468.3,2467.8,0.8236]
[1728810720796,0.10825139,2468.2,2467.8,0.8236]
[1728810721002,5.53511101,2468.3,2467.8,0.8236]
[1728810721205,4.15979139,2468.2,2467.8,0.8236]
[1728810722998,4.15979139,2468.2,2467.8,2.30723101]
[1728810723190,4.15979139,2468.2,2468.1,0.00785622]
[1728810730852,0.10825139,2468.2,2468.1,2.27728723]
[1728810731014,0.10825139,2468.2,2468.1,2.91021695]
[1728810731349,0.10453614,2468.2,2468.1,2.27728723]
[1728810731643,4.05108,2468.5,2468.1,2.27728723]
[1728810731942,0.1046408,2468.4,2468.1,0.79365622]
[1728810732242,4.87898,2468.3,2468.1,0.00785622]
[1728810732424,0.60289822,2468.2,2467.8,2.26943101]
[1728810732602,0.10453614,2468.2,2467.8,2.26943101]
[1728810732941,4.87898,2468.3,2467.8,2.26943101]
[1728810733124,0.10448931,2468.1,2467.9,1.48363101]
[1728810733334,0.10454164,2468.2,2468.0,0.00785622]
[1728810733535,4.87898,2468.3,2468.1,0.00785622]
[1728810733832,6.00484607,2468.3,2468.1,0.00785622]
[1728810734046,10.05635607,2468.3,2468.2,0.00785622]
[1728810734403,6.00484607,2468.3,2468.2,0.00785622]
[1728810736532,6.70435689,2468.3,2468.2,0.00785622]
[1728810737903,6.70442683,2468.3,2468.2,0.00785622]
[1728810740506,7.75418991,2468.3,2468.2,0.00785622]
[1728810741344,6.80546566,2468.3,2468.2,0.00785622]
[1728810741504,8.70034555,2468.3,2468.2,0.00785622]
[1728810742738,8.70104668,2468.3,2468.2,0.00785622]
[1728810745422,9.12351152,2468.3,2468.2,0.00785622]
[1728810746236,9.12481169,2468.3,2468.2,0.00785622]
[1728810747557,9.26016404,2468.3,2468.2,0.00785622]
[1728810747847,9.12982786,2468.3,2468.2,0.00785622]
[1728810748053,9.26020688,2468.3,2468.2,0.00785622]
[1728810748512,10.95006624,2468.3,2468.2,0.00785622]
[1728810749753,10.95006624,2468.3,2468.2,0.13474055]
[1728810754032,9.26020688,2468.3,2468.2,0.13474055]
[1728810754524,10.95006624,2468.3,2468.2,0.13474055]
[1728810755133,9.26020688,2468.3,2468.2,0.13474055]
[1728810755778,8.43260688,2468.3,2468.2,0.13474055]
[1728810756060,10.12246624,2468.3,2468.2,0.13474055]
[1728810756853,8.37030636,2468.3,2468.2,0.13474055]
[1728810757151,10.12429854,2468.3,2468.2,0.13474055]
[1728810757353,8.43443918,2468.3,2468.2,0.13474055]
[1728810757733,10.12429854,2468.3,2468.2,0.13474055]
[1728810757934,8.43443918,2468.3,2468.2,0.13474055]
[1728810758658,10.12429854,2468.3,2468.2,0.13474055]
[1728810764659,10.12429854,2468.3,2468.2,0.00785622]
[1728810764850,10.12429854,2468.3,2468.2,0.13473552]
[1728810766525,10.12520092,2468.3,2468.2,0.13473552]
[1728810767935,10.12520092,2468.3,2468.2,0.13473545]
[1728810771236,10.12523808,2468.3,2468.2,0.13473545]
[1728810772168,10.12523808,2468.3,2468.2,0.00785622]
[1728810772828,10.12523808,2468.3,2468.2,0.13473618]
[1728810775390,10.12521407,2468.3,2468.2,0.13473618]
[1728810775899,10.12521407,2468.3,2468.2,0.13473657]
[1728810776189,10.12521307,2468.3,2468.2,0.13473657]
[1728810779649,10.12521307,2468.3,2468.2,0.13473701]
[1728810780663,10.12540133,2468.3,2468.2,0.13473701]
[1728810782362,10.12540133,2468.3,2468.2,0.13473625]
[1728810782562,4.94815526,2468.3,2468.2,0.13473625]
[1728810782764,4.94815526,2468.3,2468.2,2.39546726]
[1728810783214,3.12973993,2468.3,2468.2,2.39546726]
[1728810783509,3.12964702,2468.3,2468.2,2.39546726]
[1728810786501,3.12964702,2468.3,2468.2,2.26858723]
[1728810786701,1.8561338,2468.3,2468.2,2.26858723]
[1728810787000,3.12964702,2468.3,2468.2,2.26858723]
[1728810787594,1.8561338,2468.3,2468.2,2.39545785]
[1728810787794,3.12964702,2468.3,2468.2,2.39545785]
[1728810788323,1.8561338,2468.3,2468.2,2.26858723]
[1728810788964,1.85560771,2468.3,2468.2,2.26858723]
[1728810789205,2.70439441,2468.3,2468.2,2.26858723]
[1728810789596,2.70434378,2468.3,2468.2,2.26858723]
[1728810789976,1.85560771,2468.3,2468.2,2.26858723]
[1728810790202,2.70434739,2468.3,2468.2,2.26858723]
[1728810790801,1.85560771,2468.3,2468.2,2.26858723]
[1728810791470,2.70427279,2468.3,2468.2,2.26858723]
[1728810793615,2.70397266,2468.3,2468.2,2.26858723]
[1728810795708,1.85530758,2468.3,2468.2,2.26858723]
[1728810795926,2.70394208,2468.3,2468.2,2.26858723]
[1728810797321,2.70390675,2468.3,2468.2,2.26858723]
[1728810797493,1.85530758,2468.3,2468.2,2.26858723]
[1728810798324,3.12876785,2468.3,2468.2,2.26858723]
[1728810799430,1.85525463,2468.3,2468.2,2.26858723]
[1728810801242,2.7038976,2468.3,2468.2,2.26858723]
[1728810802981,2.70397672,2468.3,2468.2,2.26858723]
[1728810803153,1.85533375,2468.3,2468.2,2.26858723]
[1728810803363,2.70397105,2468.3,2468.2,2.26858723]
[1728810803976,2.70396225,2468.3,2468.2,2.26858723]
[1728810805980,1.85533375,2468.3,2468.2,2.26858723]
[1728810806351,1.85533896,2468.3,2468.2,2.26858723]
[1728810807376,2.70398335,2468.3,2468.2,2.26858723]
[1728810808571,1.85533896,2468.3,2468.2,2.26858723]
[1728810809082,1.85533896,2468.3,2468.2,1.49148723]
[1728810809436,2.70399087,2468.3,2468.2,1.49148723]
[1728810810651,1.85533896,2468.3,2468.2,1.49148723]
[1728810812571,1.85540968,2468.3,2468.2,1.49148723]
[1728810814588,3.1289229,2468.3,2468.2,1.49148723]
[1728810815081,1.85540968,2468.3,2468.2,1.49148723]
[1728810816184,3.1289229,2468.3,2468.2,1.49148723]
[1728810817386,3.12906007,2468.3,2468.2,1.49148723]
[1728810818581,1.85554685,2468.3,2468.2,1.49148723]
[1728810818884,3.12906007,2468.3,2468.2,1.49148723]
[1728810819190,1.85554685,2468.3,2468.2,1.49148723]
[1728810819584,3.12906007,2468.3,2468.2,1.49148723]
[1728810822184,3.12930506,2468.3,2468.2,1.49148723]
[1728810825095,3.12930506,2468.3,2468.2,0.00785622]
[1728810825279,3.89710506,2468.3,2468.2,0.00785622]
[1728810826751,3.89749163,2468.3,2468.2,0.00785622]
[1728810828191,4.0283653,2468.3,2468.2,0.00785622]
[1728810831490,4.02862004,2468.3,2468.2,0.00785622]
[1728810834061,3.89798921,2468.3,2468.2,0.00785622]
[1728810834598,4.0285332,2468.3,2468.2,0.00785622]
[1728810835770,4.0285332,2468.3,2468.2,1.49148723]
[1728810836316,2.27313888,2468.3,2468.2,1.49148723]
[1728810836477,4.02852168,2468.3,2468.2,1.49148723]
[1728810836992,4.02852168,2468.3,2468.2,0.00785622]
[1728810839613,3.89795025,2468.3,2468.2,0.00785622]
[1728810840123,4.02849418,2468.3,2468.2,0.00785622]
[1728810841306,3.89794686,2468.3,2468.2,0.00785622]
[1728810841687,4.02849769,2468.3,2468.2,0.00785622]
[1728810841893,4.02846926,2468.3,2468.2,0.00785622]
[1728810842933,4.02846926,2468.3,2468.2,0.31227588]
[1728810843086,3.89795161,2468.3,2468.2,0.31227588]
[1728810843937,3.89795161,2468.3,2468.2,0.00785622]
[1728810844224,3.89795161,2468.3,2468.2,0.31227708]
[1728810844392,3.89788392,2468.3,2468.2,0.31227708]
[1728810849121,3.89788392,2468.3,2468.2,0.43915121]
[1728810849323,3.89789771,2468.3,2468.2,1.92278222]
[1728810849628,3.13009771,2468.3,2468.2,1.92278222]
[1728810850538,3.13009771,2468.3,2468.2,1.49148723]
[1728810851110,1.85636773,2468.3,2468.2,1.49148723]
[1728810851315,3.26061628,2468.3,2468.2,1.49148723]
[1728810851550,3.26061628,2468.3,2468.2,1.79590969]
[1728810852002,3.26061628,2468.3,2468.2,1.92278208]
[1728810852204,3.26061628,2468.3,2468.2,1.61835962]
[1728810852396,3.26061628,2468.3,2468.2,0.43915166]
[1728810853896,3.26062138,2468.3,2468.2,0.43915166]
[1728810856016,3.26062138,2468.3,2468.2,0.00785622]
[1728810856203,3.26062138,2468.3,2468.2,0.43915553]
[1728810857045,3.26062138,2468.3,2468.2,1.92278654]
[1728810857715,3.13011354,2468.3,2468.2,1.92278654]
[1728810858164,1.85637283,2468.3,2468.2,1.92278654]
[1728810858361,3.26064633,2468.3,2468.2,0.43915553]
[1728810858559,3.26071784,2468.3,2468.2,0.43915553]
[1728810859732,3.26071784,2468.3,2468.2,0.00785622]